lending/lending_fUSD_20250122
["ID","MTS","AMOUNT","RATE_DAILY","PERIOD"]
[349995967,1737556922069,-500.0,0.00020899,2]
[349995968,1737556922079,-500.0,0.00020899,2]
[349995969,1737556922090,-500.0,0.00020899,2]
[349995970,1737556922100,-500.0,0.00020899,2]
[349995971,1737556922109,-500.0,0.00020899,2]
[349995972,1737556922119,-1118.39,0.00020899,2]
[349995973,1737556922128,-500.0,0.00020899,2]
[349995974,1737556922138,-500.0,0.00020899,2]
[349995975,1737556922148,-500.0,0.00020899,2]
[349995976,1737556922158,-500.0,0.00020899,2]
[349995977,1737556922168,-500.0,0.00020899,2]
[349995978,1737556922179,-500.0,0.00020899,2]
[349995979,1737556922189,-500.0,0.00020899,2]
[349995980,1737556922200,-500.0,0.00020899,2]
[349995981,1737556922212,-500.0,0.00020899,2]
[349995982,1737556922221,-500.0,0.00020899,2]
[349995983,1737556922232,-500.0,0.00020899,2]
[349995984,1737556922242,-500.0,0.00020899,2]
[349995985,1737556922254,-500.0,0.00020899,2]
[349995986,1737556922264,-500.0,0.00020899,2]
[349995987,1737556922274,-651.06,0.00020899,2]
[349995988,1737556922286,-500.0,0.00020899,2]
[349995989,1737556922296,-500.0,0.00020899,2]
[349995990,1737556922305,-500.0,0.00020899,2]
[349995991,1737556922315,-500.0,0.00020899,2]
[349995992,1737556922325,-500.0,0.00020899,2]
[349995993,1737556922336,-424.12705576,0.00020899,2]
[349996004,1737557432441,-777.63,0.0001806,2]
[349996005,1737557432452,-315.44504531,0.00018448,2]
[349996006,1737557432463,-500.0,0.00018548,2]
[349996007,1737557432473,-300.0,0.00019917,2]
[349996008,1737557432484,-5253.83366237,0.00019918,2]
[349996009,1737557432590,-39812.33633763,0.00019918,2]
[349996010,1737557432600,-376.45,0.0001995,2]
[349996011,1737557432610,-250.0,0.00020016,2]
[349996012,1737557432621,-155.24,0.00020228,30]
[349996013,1737557432633,-300.0,0.000203,7]
[349996014,1737557432643,-777.63,0.00020323,2]
[349996015,1737557432660,-150.0,0.00020329,2]
[349996016,1737557432669,-160.624,0.0002033,2]
[349996017,1737557432681,-600.0,0.000204,7]
[349996018,1737557432691,-531.61925383,0.000205,2]
[349996019,1737557432701,-1000.0,0.000205,7]
[349996020,1737557432711,-1300.0,0.000206,7]
[349996021,1737557432720,-1766.9696055,0.00020699,2]
[349996022,1737557432730,-1600.0,0.000207,7]
[349996023,1737557432741,-500.0,0.0002074,2]
[349996024,1737557432753,-1766.96960544,0.00020766,2]
[349996025,1737557432774,-468.25898216,0.00020783,2]
[349996026,1737557432788,-34591.5543476,0.00020786,2]
[349996027,1737557432799,-4957.37111984,0.00020787,2]
[349996028,1737557432808,-464.61458169,0.00020789,2]
[349996029,1737557432819,-200.0,0.00020789,2]
[349996030,1737557432828,-200.0,0.00020793,2]
[349996031,1737557432838,-3420.03108683,0.00020794,2]
[349996032,1737557432848,-8274.16328898,0.00020796,2]
[349996033,1737557432860,-5387.8068,0.00020796,2]
[349996034,1737557432872,-2641.46697693,0.00020796,2]
[349996035,1737557432882,-1095.35288765,0.00020797,2]
[349996036,1737557432893,-200.0,0.00020797,2]
[349996037,1737557432903,-31988.26681823,0.00020798,2]
[349996038,1737557432912,-9461.59067676,0.00020798,2]
[349996039,1737557432924,-16859.51977928,0.00020798,2]
[349996040,1737557432934,-200.0,0.00020798,2]
[349996041,1737557432943,-1470.4273855,0.00020799,2]
[349996042,1737557432955,-99149.3509145,0.00020799,2]
[349996043,1737557432965,-216.73288468,0.00020799,2]
[349996044,1737557432974,-29997.44580766,0.00020799,2]
[349996045,1737557432983,-34.65164928,0.000208,7]
[349996046,1737557432998,-265.34835072,0.000208,7]
[349996047,1737557433007,-1007.0,0.000208,2]
[349996048,1737557433017,-2338.30937699,0.000208,2]
[349996049,1737557433026,-496.12223497,0.000208,2]
[349996050,1737557433036,-47943.22003732,0.00020801,2]
[349996051,1737557433049,-2720.71089613,0.00020801,2]
[349996052,1737557433061,-3758.08898028,0.00020801,2]
[349996053,1737557433071,-2338.30937699,0.00020804,2]
[349996054,1737557433081,-1597.59119868,0.00020808,2]
[349996055,1737557433091,-43992.22608465,0.00020809,2]
[349996056,1737557433102,-2143.54427203,0.00020809,2]
[349996057,1737557433113,-1050.5597655,0.00020809,2]
[349996059,1737557433132,-418.96,0.00020809,2]
[349996063,1737557433164,-6816.72979155,0.00020809,2]
[349996065,1737557433173,-2634.80372,0.00020812,2]
[349996067,1737557433183,-973.46648845,0.00020812,2]
[349996069,1737557433195,-7571.24031559,0.00020812,2]
[349996072,1737557433206,-5764.83045,0.00020812,2]
[349996074,1737557433218,-3332.6871248,0.00020812,2]
[349996076,1737557433231,-6897.6099792,0.00020812,2]
[349996078,1737557433243,-1244.15535,0.00020812,2]
[349996081,1737557433254,-1568.49349,0.00020812,2]
[349996560,1737557438679,-643.25932,0.00020812,2]
[349996563,1737557438691,-6595.81182956,0.00020812,2]
[349996565,1737557438701,-3778.33617045,0.00020813,2]
[349996567,1737557438712,-30813.21817715,0.00020813,2]
[349996569,1737557438721,-200.0,0.00020818,2]
[349996571,1737557438731,-468.25898216,0.0002082,2]
[349996573,1737557438740,-29997.44580766,0.00020821,2]
[349996575,1737557438753,-1597.59119868,0.00020823,2]
[349996577,1737557438762,-29997.44580766,0.00020825,2]
[349996579,1737557438772,-496.12223497,0.00020827,2]
[349996581,1737557438781,-2338.30937699,0.00020829,2]
[349996583,1737557438794,-1766.96960544,0.00020833,2]
[349996585,1737557438806,-16303.43706591,0.00020833,2]
[349996587,1737557438815,-31988.26681823,0.00020836,2]
[349996589,1737557438824,-200.0,0.00020836,2]
[349996591,1737557438835,-200.0,0.00020837,2]
[349996593,1737557438844,-200.0,0.00020839,2]
[349996595,1737557438854,-341.74862888,0.00020843,2]
[349996597,1737557438863,-1597.59119868,0.00020843,2]
[349996599,1737557438873,-4042.06430747,0.00020844,2]
[349996600,1737557438882,-766.4409831,0.00020844,2]
[349996602,1737557438892,-200.0,0.00020845,2]
[349996604,1737557438902,-200.0,0.00020846,2]
[349996606,1737557438911,-1095.35288765,0.00020846,2]
[349996608,1737557438921,-447.0988917,0.0002085,2]
[349996610,1737557438930,-561.20079213,0.00020851,2]
[349996612,1737557438939,-2634.80372,0.00020854,2]
[349996614,1737557438949,-200.0,0.00020858,2]
[349996616,1737557438958,-766.4409831,0.00020859,2]
[349996618,1737557438967,-4042.06430747,0.00020859,2]
[349996620,1737557438977,-447.0988917,0.00020859,2]
[349996622,1737557438986,-200.0,0.0002086,2]
[349996624,1737557438995,-447.0988917,0.00020864,2]
[349996627,1737557439005,-2338.30937699,0.00020864,2]
[349996630,1737557439014,-307.11194833,0.00020866,2]
[349996633,1737557439023,-341.74862888,0.00020866,2]
[349996635,1737557439032,-54422.01991373,0.00020867,2]
[349996637,1737557439042,-496.12223497,0.00020867,2]
[349996639,1737557439051,-200.0,0.00020868,2]
[349996641,1737557439066,-16859.51977928,0.00020876,2]
[349996643,1737557439076,-341.74862888,0.00020877,2]
[349996645,1737557439086,-468.25898216,0.00020878,2]
[349996647,1737557439095,-4042.06430747,0.00020879,2]
[349996649,1737557439104,-3420.03108683,0.0002088,2]
[349996651,1737557439114,-766.4409831,0.00020882,2]
[349996653,1737557439124,-54422.01991373,0.00020884,2]
[349996655,1737557439134,-4042.06430747,0.00020886,2]
[349996657,1737557439143,-2338.30937699,0.00020889,2]
[349996659,1737557439152,-464.61458169,0.00020889,2]
[349996661,1737557439161,-273.01,0.00020889,2]
[349996663,1737557439170,-623.02831759,0.00020892,2]
[349996665,1737557439179,-200.0,0.00020895,2]
[349996667,1737557439188,-447.0988917,0.00020895,2]
[349996669,1737557439198,-29997.44580766,0.00020897,2]
[349996671,1737557439207,-496.12223497,0.00020897,2]
[349996673,1737557439216,-500.0,0.00020898,2]
[349996675,1737557439225,-933.63,0.00020898,2]
[349996677,1737557439235,-1871.93,0.00020898,2]
[349996679,1737557439244,-569.26,0.00020898,2]
[349996681,1737557439253,-1722.69,0.00020898,2]
[349996683,1737557439262,-611.43,0.00020898,2]
[349996685,1737557439272,-1211.25,0.00020898,2]
[349996687,1737557439281,-1162.47,0.00020898,2]
[349996688,1737557439290,-500.0,0.00020898,2]
[349996689,1737557439300,-500.0,0.00020898,2]
[349996690,1737557439314,-823.39,0.00020898,2]
[349996691,1737557439323,-1336.77,0.00020898,2]
[349996692,1737557439332,-500.0,0.00020898,2]
[349996693,1737557439341,-1862.99,0.00020898,2]
[349996694,1737557439350,-922.2,0.00020898,2]
[349996696,1737557439360,-1522.28,0.00020898,2]
[349996698,1737557439370,-941.7,0.00020898,2]
[349996700,1737557439379,-301.97194434,0.00020898,2]
[349996702,1737557439388,-893.54,0.00020898,2]
[349996704,1737557439398,-652.94,0.00020898,2]
[349996706,1737557439407,-2687.74,0.00020898,2]
[349996708,1737557439416,-500.0,0.00020898,2]
[349996710,1737557439426,-1116.71,0.00020898,2]
[349996712,1737557439435,-578.04,0.00020898,2]
[349996714,1737557439444,-599.45,0.00020898,2]
[349996716,1737557439453,-500.0,0.00020898,2]
[349996718,1737557439462,-500.0,0.00020898,2]
[349996720,1737557439472,-500.0,0.00020898,2]
[349996722,1737557439482,-500.0,0.00020898,2]
[349996724,1737557439491,-564.26,0.00020898,2]
[349996726,1737557439500,-500.0,0.00020898,2]
[349996728,1737557439511,-3403.44,0.00020898,2]
[349996730,1737557439521,-2634.80372,0.00020899,2]
[349996732,1737557439530,-75.87294424,0.00020899,2]
[349996734,1737557439540,-500.0,0.00020899,2]
[349996736,1737557439549,-500.0,0.00020899,2]
[349996738,1737557439562,-500.0,0.00020899,2]
[349996740,1737557439572,-500.0,0.00020899,2]
[349996742,1737557439581,-500.0,0.00020899,2]
[349996744,1737557439590,-500.0,0.00020899,2]
[349996746,1737557439600,-500.0,0.00020899,2]
[349996748,1737557439610,-500.0,0.00020899,2]
[349996750,1737557439620,-235.79183501,0.00020899,2]
[349996752,1737557439629,-500.0,0.00020899,2]
[349996754,1737557439639,-500.0,0.00020899,2]
[349996756,1737557439649,-500.0,0.00020899,2]
[349996758,1737557439658,-500.0,0.00020899,2]
[349996760,1737557439667,-500.0,0.00020899,2]
[349996762,1737557439677,-500.0,0.00020899,2]
[349996764,1737557439686,-500.0,0.00020899,2]
[349996766,1737557439696,-500.0,0.00020899,2]
[349996768,1737557439705,-500.0,0.00020899,2]
[349996770,1737557439715,-500.0,0.00020899,2]
[349996772,1737557439724,-500.0,0.00020899,2]
[349996774,1737557439734,-500.0,0.00020899,2]
[349996776,1737557439744,-500.0,0.00020899,2]
[349996778,1737557439755,-500.0,0.00020899,2]
[349996780,1737557439771,-500.0,0.00020899,2]
[349996782,1737557439781,-500.0,0.00020899,2]
[349996784,1737557439791,-500.0,0.00020899,2]
[349996785,1737557439801,-500.0,0.00020899,2]
[349996787,1737557439815,-500.0,0.00020899,2]
[349996789,1737557439825,-500.0,0.00020899,2]
[349996792,1737557439836,-500.0,0.00020899,2]
[349996794,1737557439846,-500.0,0.00020899,2]
[349996796,1737557439856,-500.0,0.00020899,2]
[349996798,1737557439866,-500.0,0.00020899,2]
[349996800,1737557439876,-500.0,0.00020899,2]
[349996802,1737557439886,-500.0,0.00020899,2]
[349996804,1737557439896,-500.0,0.00020899,2]
[349996806,1737557439906,-500.0,0.00020899,2]
[349996808,1737557439917,-500.0,0.00020899,2]
[349996810,1737557439926,-500.0,0.00020899,2]
[349996812,1737557439935,-500.0,0.00020899,2]
[349996814,1737557439945,-500.0,0.00020899,2]
[349996816,1737557439955,-500.0,0.00020899,2]
[349996818,1737557439965,-500.0,0.00020899,2]
[349996820,1737557439975,-500.0,0.00020899,2]
[349996822,1737557439984,-500.0,0.00020899,2]
[349996824,1737557439994,-500.0,0.00020899,2]
[349996826,1737557440004,-500.0,0.00020899,2]
[349996828,1737557440015,-501.6317899,0.00020899,2]
[349996830,1737557440024,-500.0,0.00020899,2]
[349996832,1737557440034,-500.0,0.00020899,2]
[349996833,1737557440044,-500.0,0.00020899,2]
[349996835,1737557440057,-500.0,0.00020899,2]
[349996837,1737557440069,-500.0,0.00020899,2]
[349996840,1737557440079,-500.0,0.00020899,2]
[349996842,1737557440089,-500.0,0.00020899,2]
[349996843,1737557440098,-500.0,0.00020899,2]
[349996845,1737557440107,-500.0,0.00020899,2]
[349996847,1737557440117,-500.0,0.00020899,2]
[349996849,1737557440127,-500.0,0.00020899,2]
[349996851,1737557440136,-500.0,0.00020899,2]
[349996853,1737557440146,-500.0,0.00020899,2]
[349996855,1737557440156,-500.0,0.00020899,2]
[349996857,1737557440166,-500.0,0.00020899,2]
[349996859,1737557440176,-500.0,0.00020899,2]
[349996861,1737557440186,-500.0,0.00020899,2]
[349996863,1737557440195,-500.0,0.00020899,2]
[349996865,1737557440206,-500.0,0.00020899,2]
[349996867,1737557440216,-500.0,0.00020899,2]
[349996869,1737557440226,-500.0,0.00020899,2]
[349996871,1737557440237,-500.0,0.00020899,2]
[349996873,1737557440247,-500.0,0.00020899,2]
[349996875,1737557440257,-500.0,0.00020899,2]
[349996877,1737557440267,-500.0,0.00020899,2]
[349996879,1737557440276,-500.0,0.00020899,2]
[349996881,1737557440286,-501.23800936,0.00020899,2]
[349996883,1737557440296,-500.0,0.00020899,2]
[349996885,1737557440307,-500.0,0.00020899,2]
[349996887,1737557440317,-500.0,0.00020899,2]
[349996889,1737557440326,-500.0,0.00020899,2]
[349996891,1737557440336,-649.15,0.00020899,2]
[349996893,1737557440347,-500.0,0.00020899,2]
[349996895,1737557440356,-500.0,0.00020899,2]
[349996897,1737557440366,-500.0,0.00020899,2]
[349996899,1737557440375,-501.25122431,0.00020899,2]
[349996901,1737557440385,-500.0,0.00020899,2]
[349996903,1737557440394,-500.0,0.00020899,2]
[349996905,1737557440404,-500.0,0.00020899,2]
[349996907,1737557440415,-500.0,0.00020899,2]
[349996909,1737557440425,-500.0,0.00020899,2]
[349996911,1737557440434,-500.0,0.00020899,2]
[349996914,1737557440444,-549.22032803,0.00020899,2]
[349996916,1737557440454,-500.0,0.00020899,2]
[349996918,1737557440464,-500.0,0.00020899,2]
[349996920,1737557440474,-500.0,0.00020899,2]
[349996922,1737557440484,-502.65462935,0.00020899,2]
[349996924,1737557440493,-500.0,0.00020899,2]
[349996926,1737557440503,-500.0,0.00020899,2]
[349996928,1737557440513,-345.16630195,0.00020899,2]
[349996930,1737557440523,-500.0,0.00020899,2]
[349996932,1737557440532,-500.0,0.00020899,2]
[349996934,1737557440542,-500.0,0.00020899,2]
[349996936,1737557440552,-500.0,0.00020899,2]
[349996938,1737557440564,-500.0,0.00020899,2]
[349996940,1737557440573,-500.0,0.00020899,2]
[349996942,1737557440583,-500.0,0.00020899,2]
[349996944,1737557440592,-500.0,0.00020899,2]
[349996946,1737557440602,-500.0,0.00020899,2]
[349996948,1737557440612,-500.0,0.00020899,2]
[349996950,1737557440621,-500.0,0.00020899,2]
[349996952,1737557440630,-507.49562152,0.00020899,2]
[349996954,1737557440640,-500.0,0.00020899,2]
[349996956,1737557440649,-500.0,0.00020899,2]
[349996958,1737557440659,-500.0,0.00020899,2]
[349996960,1737557440669,-503.59744126,0.00020899,2]
[349996962,1737557440679,-500.0,0.00020899,2]
[349996964,1737557440689,-500.0,0.00020899,2]
[349996966,1737557440699,-500.0,0.00020899,2]
[349996968,1737557440708,-500.0,0.00020899,2]
[349996970,1737557440718,-500.0,0.00020899,2]
[349996972,1737557440728,-500.0,0.00020899,2]
[349996974,1737557440738,-500.0,0.00020899,2]
[349996976,1737557440751,-500.0,0.00020899,2]
[349996978,1737557440760,-500.0,0.00020899,2]
[349996980,1737557440770,-500.0,0.00020899,2]
[349996982,1737557440779,-500.0,0.00020899,2]
[349996984,1737557440790,-500.0,0.00020899,2]
[349996986,1737557440799,-500.0,0.00020899,2]
[349996988,1737557440810,-500.0,0.00020899,2]
[349996990,1737557440820,-500.0,0.00020899,2]
[349996992,1737557440830,-500.0,0.00020899,2]
[349996994,1737557440840,-500.0,0.00020899,2]
[349996996,1737557440850,-216.45644759,0.00020899,2]
[349996998,1737557440859,-500.0,0.00020899,2]
[349997000,1737557440869,-500.0,0.00020899,2]
[349997002,1737557440878,-500.0,0.00020899,2]
[349997004,1737557440888,-500.0,0.00020899,2]
[349997005,1737557440898,-500.0,0.00020899,2]
[349997006,1737557440908,-503.84401641,0.00020899,2]
[349997007,1737557440918,-500.0,0.00020899,2]
[349997008,1737557440927,-500.0,0.00020899,2]
[349997009,1737557440938,-500.0,0.00020899,2]
[349997010,1737557440948,-500.0,0.00020899,2]
[349997011,1737557440958,-500.0,0.00020899,2]
[349997013,1737557440968,-500.0,0.00020899,2]
[349997014,1737557440977,-650.91,0.00020899,2]
[349997016,1737557440987,-502.0012027,0.00020899,2]
[349997019,1737557440996,-500.0,0.00020899,2]
[349997036,1737557441155,-500.0,0.00020899,2]
[349997038,1737557441165,-500.0,0.00020899,2]
[349997040,1737557441174,-500.0,0.00020899,2]
[349997042,1737557441183,-152.67741428,0.00020899,2]
[349997044,1737557441193,-500.0,0.00020899,2]
[349997046,1737557441202,-500.0,0.00020899,7]
[349997048,1737557441212,-500.0,0.00020899,2]
[349997050,1737557441221,-503.17438857,0.00020899,2]
[349997053,1737557441231,-503.26572874,0.00020899,2]
[349997056,1737557441240,-500.0,0.00020899,2]
[349997058,1737557441249,-500.0,0.00020899,2]
[349997060,1737557441258,-500.0,0.00020899,2]
[349997062,1737557441267,-500.0,0.00020899,2]
[349997064,1737557441276,-500.0,0.00020899,2]
[349997066,1737557441285,-500.0,0.00020899,2]
[349997068,1737557441295,-500.0,0.00020899,2]
[349997070,1737557441305,-500.0,0.00020899,2]
[349997072,1737557441314,-500.0,0.00020899,2]
[349997074,1737557441323,-500.0,0.00020899,2]
[349997076,1737557441333,-500.0,0.00020899,2]
[349997078,1737557441342,-500.0,0.00020899,2]
[349997080,1737557441351,-500.0,0.00020899,2]
[349997082,1737557441360,-500.0,0.00020899,2]
[349997084,1737557441369,-500.0,0.00020899,2]
[349997086,1737557441379,-500.0,0.00020899,2]
[349997088,1737557441388,-245.34354752,0.00020899,2]
[349997090,1737557441398,-500.0,0.00020899,2]
[349997092,1737557441407,-500.0,0.00020899,2]
[349997094,1737557441416,-500.0,0.00020899,2]
[349997095,1737557441425,-500.0,0.00020899,2]
[349997096,1737557441435,-500.0,0.00020899,2]
[349997097,1737557441444,-500.0,0.00020899,2]
[349997098,1737557441454,-500.0,0.00020899,2]
[349997099,1737557441463,-536.89,0.00020899,2]
[349997100,1737557441472,-500.0,0.00020899,2]
[349997101,1737557441482,-500.0,0.00020899,2]
[349997102,1737557441492,-500.0,0.00020899,2]
[349997103,1737557441501,-500.0,0.00020899,2]
[349997104,1737557441511,-634.87956698,0.00020899,2]
[349997105,1737557441520,-500.0,0.00020899,2]
[349997106,1737557441530,-500.0,0.00020899,2]
[349997107,1737557441539,-500.0,0.00020899,2]
[349997108,1737557441548,-500.0,0.00020899,2]
[349997109,1737557441560,-500.0,0.00020899,2]
[349997110,1737557441569,-500.0,0.00020899,2]
[349997111,1737557441579,-500.0,0.00020899,2]
[349997112,1737557441588,-527.86,0.00020899,2]
[349997113,1737557441598,-2000.0,0.00020899,2]
[349997114,1737557441608,-500.0,0.00020899,2]
[349997115,1737557441617,-500.0,0.00020899,2]
[349997116,1737557441627,-200.0,0.00020899,2]
[349997117,1737557441636,-686.68,0.00020899,2]
[349997118,1737557441646,-500.0,0.00020899,2]
[349997119,1737557441655,-500.0,0.00020899,2]
[349997120,1737557441665,-500.0,0.00020899,2]
[349997121,1737557441674,-500.0,0.00020899,2]
[349997122,1737557441683,-500.0,0.00020899,2]
[349997123,1737557441692,-500.0,0.00020899,2]
[349997124,1737557441702,-500.0,0.00020899,2]
[349997125,1737557441711,-500.0,0.00020899,2]
[349997126,1737557441720,-500.0,0.00020899,2]
[349997127,1737557441731,-426.85310046,0.00020899,2]
[349997128,1737557441741,-500.0,0.00020899,2]
[349997129,1737557441750,-500.0,0.00020899,2]
[349997130,1737557441761,-500.0,0.00020899,2]
[349997131,1737557441771,-500.0,0.00020899,2]
[349997132,1737557441780,-500.0,0.00020899,2]
[349997133,1737557441790,-500.0,0.00020899,2]
[349997134,1737557441799,-500.0,0.00020899,2]
[349997135,1737557441813,-737.4,0.00020899,2]
[349997136,1737557441822,-500.0,0.00020899,2]
[349997137,1737557441832,-500.0,0.00020899,2]
[349997138,1737557441843,-500.0,0.00020899,2]
[349997139,1737557441853,-500.0,0.00020899,2]
[349997140,1737557441862,-500.0,0.00020899,2]
[349997141,1737557441871,-500.0,0.00020899,2]
[349997142,1737557441881,-500.0,0.00020899,2]
[349997143,1737557441890,-500.0,0.00020899,2]
[349997144,1737557441899,-500.0,0.00020899,2]
[349997145,1737557441909,-728.28,0.00020899,2]
[349997146,1737557441918,-500.0,0.00020899,2]
[349997147,1737557441927,-500.0,0.00020899,2]
[349997148,1737557441936,-703.45,0.00020899,2]
[349997149,1737557441945,-522.67,0.00020899,2]
[349997150,1737557441955,-500.0,0.00020899,2]
[349997151,1737557441965,-500.0,0.00020899,2]
[349997152,1737557441975,-500.0,0.00020899,2]
[349997153,1737557441984,-503.71145374,0.00020899,2]
[349997154,1737557441993,-500.0,0.00020899,2]
[349997155,1737557442002,-500.0,0.00020899,2]
[349997156,1737557442012,-500.0,0.00020899,2]
[349997157,1737557442022,-500.0,0.00020899,2]
[349997158,1737557442031,-500.0,0.00020899,2]
[349997159,1737557442040,-500.0,0.00020899,2]
[349997160,1737557442050,-500.0,0.00020899,2]
[349997162,1737557442061,-198.39247819,0.00020899,2]
[349997163,1737557442070,-500.0,0.00020899,2]
[349997164,1737557442079,-500.0,0.00020899,2]
[349997166,1737557442088,-500.0,0.00020899,2]
[349997167,1737557442097,-500.0,0.00020899,2]
[349997168,1737557442106,-500.0,0.00020899,2]
[349997169,1737557442115,-500.0,0.00020899,2]
[349997170,1737557442124,-500.0,0.00020899,2]
[349997171,1737557442133,-500.0,0.00020899,2]
[349997172,1737557442142,-500.0,0.00020899,2]
[349997173,1737557442151,-503.39758057,0.00020899,2]
[349997174,1737557442160,-500.0,0.00020899,2]
[349997175,1737557442168,-502.56421837,0.00020899,2]
[349997176,1737557442177,-500.0,0.00020899,2]
[349997178,1737557442186,-500.0,0.00020899,2]
[349997180,1737557442195,-354.53526846,0.00020899,2]
[349997182,1737557442204,-500.0,0.00020899,2]
[349997184,1737557442213,-500.0,0.00020899,2]
[349997185,1737557442222,-500.0,0.00020899,2]
[349997186,1737557442231,-500.0,0.00020899,2]
[349997187,1737557442240,-500.0,0.00020899,2]
[349997188,1737557442251,-500.0,0.00020899,2]
[349997189,1737557442261,-501.28179665,0.00020899,2]
[349997190,1737557442270,-500.0,0.00020899,2]
[349997191,1737557442279,-500.0,0.00020899,2]
[349997192,1737557442288,-500.0,0.00020899,2]
[349997193,1737557442298,-500.0,0.00020899,2]
[349997194,1737557442310,-500.0,0.00020899,2]
[349997195,1737557442320,-500.0,0.00020899,2]
[349997197,1737557442330,-500.0,0.00020899,2]
[349997199,1737557442340,-500.0,0.00020899,2]
[349997201,1737557442351,-500.0,0.00020899,2]
[349997203,1737557442360,-2442.30148657,0.00020899,2]
[349997205,1737557442370,-500.0,0.00020899,2]
[349997207,1737557442380,-500.0,0.00020899,2]
[349997209,1737557442389,-500.0,0.00020899,2]
[349997210,1737557442400,-500.0,0.00020899,2]
[349997212,1737557442409,-500.0,0.00020899,2]
[349997214,1737557442420,-500.0,0.00020899,2]
[349997217,1737557442430,-500.0,0.00020899,2]
[349997219,1737557442439,-500.0,0.00020899,2]
[349997220,1737557442451,-500.0,0.00020899,2]
[349997222,1737557442461,-500.0,0.00020899,2]
[349997224,1737557442471,-560.97,0.00020899,2]
[349997226,1737557442480,-500.0,0.00020899,2]
[349997228,1737557442489,-500.0,0.00020899,2]
[349997230,1737557442499,-500.0,0.00020899,2]
[349997232,1737557442508,-500.0,0.00020899,2]
[349997234,1737557442518,-438.72967266,0.00020899,2]
[349997236,1737557442527,-500.0,0.00020899,2]
[349997238,1737557442537,-500.0,0.00020899,2]
[349997240,1737557442547,-500.0,0.00020899,2]
[349997242,1737557442557,-500.0,0.00020899,2]
[349997244,1737557442567,-500.0,0.00020899,2]
[349997246,1737557442576,-500.0,0.00020899,2]
[349997248,1737557442586,-500.0,0.00020899,2]
[349997250,1737557442595,-500.0,0.00020899,2]
[349997252,1737557442606,-500.0,0.00020899,2]
[349997254,1737557442615,-500.0,0.00020899,2]
[349997256,1737557442624,-587.7,0.00020899,2]
[349997258,1737557442633,-500.0,0.00020899,2]
[349997260,1737557442642,-500.0,0.00020899,2]
[349997262,1737557442651,-388.53881184,0.00020899,2]
[349997264,1737557442661,-612.96,0.00020899,2]
[349997266,1737557442671,-500.0,0.00020899,2]
[349997268,1737557442680,-500.0,0.00020899,2]
[349997270,1737557442688,-500.0,0.00020899,2]
[349997272,1737557442697,-500.0,0.00020899,2]
[349997274,1737557442707,-508.36357503,0.00020899,2]
[349997276,1737557442716,-501.98534336,0.00020899,2]
[349997278,1737557442725,-500.0,0.00020899,2]
[349997280,1737557442734,-1766.96960544,0.00020899,2]
[349997282,1737557442745,-300.0,0.000209,7]
[349997284,1737557442759,-220.7848688,0.000209,2]
[349997286,1737557442768,-561.2007921,0.00020901,2]
[349997288,1737557442777,-31988.26681823,0.00020902,2]
[349997290,1737557442787,-31988.26681823,0.00020902,2]
[349997292,1737557442799,-464.61458169,0.00020903,2]